fUST/lending_fUST_20250212
["ID","MTS","AMOUNT","RATE_DAILY","PERIOD"]
[352749356,1739290244368,-500.0,0.00011095,2]
[352749358,1739290244377,-500.0,0.00011095,2]
[352749360,1739290244386,-237.11012733,0.00011095,2]
[352749363,1739290244409,-154.6189857,0.000104,2]
[352749365,1739290244418,-262.88987267,0.00011095,2]
[352749367,1739290244428,-500.0,0.00011095,2]
[352749369,1739290244437,-464.24114158,0.00011095,2]
[352749372,1739290244449,-35.75885842,0.00011095,2]
[352749374,1739290244458,-341.56114158,0.00011095,2]
[352749376,1739290244470,-158.43885842,0.00011095,2]
[352749378,1739290244480,-569.23,0.00011095,2]
[352749380,1739290244490,-312.12514158,0.00011095,2]
[352749591,1739290246203,-159.55767806,0.00010984,2]
[352749593,1739290246214,-937.44485842,0.00011095,2]
[352749595,1739290246224,-1072.91,0.00011095,2]
[352749597,1739290246234,-500.0,0.00011095,2]
[352749599,1739290246243,-508.53,0.00011095,2]
[352749601,1739290246253,-500.0,0.00011095,2]
[352749603,1739290246262,-566.31,0.00011095,2]
[352749605,1739290246272,-500.0,0.00011095,2]
[352749607,1739290246281,-1724.04,0.00011095,2]
[352749609,1739290246292,-500.0,0.00011095,2]
[352749611,1739290246302,-3076.7,0.00011095,2]
[352749613,1739290246311,-151.0,0.00011095,2]
[352749615,1739290246320,-151.0,0.00011095,2]
[352749617,1739290246330,-500.0,0.00011095,2]
[352749619,1739290246339,-151.0,0.00011095,2]
[352749621,1739290246348,-500.0,0.00011095,2]
[352749623,1739290246358,-500.0,0.00011095,2]
[352749625,1739290246368,-1578.58,0.00011095,2]
[352749628,1739290246378,-500.0,0.00011095,2]
[352749630,1739290246387,-2860.91,0.00011095,2]
[352749632,1739290246397,-500.0,0.00011095,2]
[352749634,1739290246406,-500.0,0.00011095,2]
[352749636,1739290246415,-500.0,0.00011095,2]
[352749638,1739290246426,-513.402601,0.00011095,2]
[352749640,1739290246435,-513.402601,0.00011095,2]
[352749642,1739290246444,-500.0,0.00011095,2]
[352749644,1739290246453,-500.0,0.00011095,2]
[352749646,1739290246462,-1544.16,0.00011095,2]
[352749647,1739290246471,-513.402601,0.00011095,2]
[352749650,1739290246481,-513.402601,0.00011095,2]
[352749651,1739290246491,-6635.33,0.00011095,2]
[352749654,1739290246500,-2010.53,0.00011095,2]
[352749656,1739290246509,-152.70928153,0.00011095,2]
[352749657,1739290246519,-500.0,0.00011095,2]
[352749659,1739290246528,-500.0,0.00011095,2]
[352749662,1739290246539,-595.17,0.00011095,2]
[352749664,1739290246548,-656.75,0.00011095,2]
[352749666,1739290246558,-500.0,0.00011095,2]
[352749668,1739290246567,-1064.59,0.00011095,2]
[352749670,1739290246577,-151.0,0.00011095,2]
[352749672,1739290246587,-608.9,0.00011095,2]
[352749674,1739290246596,-151.0,0.00011095,2]
[352749675,1739290246606,-811.82,0.00011095,2]
[352749678,1739290246615,-500.0,0.00011095,2]
[352749680,1739290246625,-21570.02,0.00011095,2]
[352749682,1739290246635,-500.0,0.00011095,2]
[352749684,1739290246645,-500.0,0.00011095,2]
[352749686,1739290246655,-580.54,0.00011095,2]
[352749688,1739290246665,-10187.59,0.00011095,2]
[352749690,1739290246674,-824.05,0.00011095,2]
[352749692,1739290246684,-500.0,0.00011095,2]
[352749694,1739290246693,-500.0,0.00011095,2]
[352749695,1739290246703,-1158.56,0.00011095,2]
[352749697,1739290246713,-1153.03,0.00011095,2]
[352749699,1739290246722,-510.96,0.00011095,2]
[352749701,1739290246732,-718.05,0.00011095,2]
[352749703,1739290246742,-500.0,0.00011095,2]
[352749706,1739290246751,-1379.76,0.00011095,2]
[352749708,1739290246761,-1510.63,0.00011095,2]
[352749710,1739290246771,-568.68,0.00011095,2]
[352749711,1739290246781,-2017.37,0.00011095,2]
[352749713,1739290246792,-500.0,0.00011095,2]
[352749715,1739290246802,-500.0,0.00011095,2]
[352749717,1739290246811,-500.0,0.00011095,2]
[352749719,1739290246822,-500.0,0.00011095,2]
[352749721,1739290246832,-500.0,0.00011095,2]
[352749723,1739290246841,-861.28,0.00011095,2]
[352749725,1739290246851,-144.17786556,0.00011095,2]
[352749728,1739290246864,-466.05213444,0.00011095,2]
[352749730,1739290246875,-500.0,0.00011095,2]
[352749732,1739290246885,-986.99,0.00011095,2]
[352749734,1739290246895,-500.0,0.00011095,2]
[352749735,1739290246905,-3640.76,0.00011095,2]
[352749737,1739290246915,-151.0,0.00011095,2]
[352749739,1739290246925,-151.0,0.00011095,2]
[352749742,1739290246936,-500.0,0.00011095,2]
[352749743,1739290246946,-542.97,0.00011095,2]
[352749745,1739290246958,-500.0,0.00011095,2]
[352749747,1739290246968,-987.91,0.00011095,2]
[352749749,1739290246978,-500.0,0.00011095,2]
[352749751,1739290246988,-500.0,0.00011095,2]
[352749753,1739290246998,-500.0,0.00011095,2]
[352749755,1739290247008,-584.13,0.00011095,2]
[352749757,1739290247018,-354.876058,0.00011096,2]
[352749759,1739290247030,-354.876058,0.00011096,2]
[352749762,1739290247041,-354.876058,0.00011096,2]
[352749764,1739290247051,-13031.41316134,0.00011188,2]
[352749765,1739290247060,-500.0,0.00011232,2]
[352749767,1739290247068,-186.747386,0.00011232,2]
[352749770,1739290247078,-500.0,0.00011232,2]
[352749771,1739290247088,-151.0,0.00011232,2]
[352749773,1739290247098,-151.0,0.00011232,2]
[352749775,1739290247108,-150.21735571,0.00011232,2]
[352749777,1739290247118,-151.0,0.00011232,2]
[352749779,1739290247128,-151.0,0.00011232,2]
[352749781,1739290247137,-151.0,0.00011232,2]
[352749783,1739290247147,-500.0,0.00011232,2]
[352749785,1739290247158,-500.0,0.00011232,2]
[352749787,1739290247168,-500.0,0.00011232,2]
[352749789,1739290247179,-500.0,0.00011232,2]
[352749791,1739290247190,-500.0,0.00011232,2]
[352749793,1739290247200,-536.11,0.00011232,2]
[352749795,1739290247210,-500.0,0.00011232,2]
[352749797,1739290247219,-665.5,0.00011232,2]
[352749799,1739290247228,-500.0,0.00011232,2]
[352749801,1739290247237,-500.0,0.00011232,2]
[352749803,1739290247247,-500.0,0.00011232,2]
[352749805,1739290247257,-160.17045616,0.00011232,2]
[352749807,1739290247267,-350.87496419,0.00011232,2]
[352749809,1739290247277,-780.33,0.00011232,2]
[352749811,1739290247289,-392.251054,0.00011232,2]
[352749813,1739290247300,-392.251054,0.00011232,2]
[352749815,1739290247311,-719.57,0.00011232,2]
[352749817,1739290247320,-500.0,0.00011232,2]
[352749819,1739290247331,-500.0,0.00011232,2]
[352749821,1739290247341,-500.0,0.00011232,2]
[352749823,1739290247350,-500.0,0.00011232,2]
[352749825,1739290247360,-444.60737968,0.00011232,2]
[352749827,1739290247370,-500.0,0.00011232,2]
[352749829,1739290247380,-642.4,0.00011232,2]
[352749831,1739290247390,-500.0,0.00011232,2]
[352749833,1739290247400,-500.0,0.00011232,2]
[352749835,1739290247409,-500.0,0.00011232,2]
[352749837,1739290247419,-150.21,0.00011232,2]
[352749840,1739290247429,-463.227503,0.00011232,2]
[352749841,1739290247438,-463.227503,0.00011232,2]
[352749844,1739290247449,-463.227503,0.00011232,2]
[352749846,1739290247459,-463.227503,0.00011232,2]
[352749847,1739290247468,-500.0,0.00011232,2]
[352749850,1739290247478,-749.15,0.00011232,2]
[352749852,1739290247491,-500.0,0.00011232,2]
[352749854,1739290247501,-500.0,0.00011232,2]
[352749856,1739290247512,-507.17692457,0.00011232,2]
[352749858,1739290247521,-1878.87,0.00011232,2]
[352749860,1739290247531,-566.89,0.00011232,2]
[352749862,1739290247542,-295.72970865,0.00011232,2]
[352749864,1739290247552,-500.0,0.00011232,2]
[352749866,1739290247562,-500.0,0.00011232,2]
[352749868,1739290247571,-500.0,0.00011232,2]
[352749870,1739290247579,-500.0,0.00011232,2]
[352749872,1739290247589,-569.23,0.00011232,2]
[352749874,1739290247601,-1249.57,0.00011232,2]
[352749876,1739290247610,-1072.91,0.00011232,2]
[352749878,1739290247620,-500.0,0.00011232,2]
[352749880,1739290247630,-508.53,0.00011232,2]
[352749882,1739290247641,-500.0,0.00011232,2]
[352749883,1739290247651,-566.31,0.00011232,2]
[352749885,1739290247661,-500.0,0.00011232,2]
[352749887,1739290247670,-1724.04,0.00011232,2]
[352749889,1739290247680,-500.0,0.00011232,2]
[352749891,1739290247690,-3076.7,0.00011232,2]
[352749893,1739290247701,-151.0,0.00011232,2]
[352749895,1739290247711,-500.0,0.00011232,2]
[352749897,1739290247722,-236.003474,0.00011232,2]
[352749899,1739290247732,-500.0,0.00011232,2]
[352749901,1739290247742,-500.0,0.00011232,2]
[352749903,1739290247752,-1578.58,0.00011232,2]
[352749905,1739290247762,-500.0,0.00011232,2]
[352749906,1739290247772,-2860.91,0.00011232,2]
[352749907,1739290247784,-500.0,0.00011232,2]
[352749908,1739290247794,-168.20645705,0.00011232,2]
[352749909,1739290247805,-500.0,0.00011232,2]
[352749910,1739290247815,-513.402601,0.00011232,2]
[352749911,1739290247825,-500.0,0.00011232,2]
[352749912,1739290247836,-500.0,0.00011232,2]
[352749913,1739290247846,-1544.16,0.00011232,2]
[352749914,1739290247857,-513.402601,0.00011232,2]
[352749915,1739290247868,-2623.22509751,0.00011232,2]
[352749916,1739290247882,-4012.10490249,0.00011232,2]
[352749917,1739290247893,-2010.53,0.00011232,2]
[352749918,1739290247903,-500.0,0.00011232,2]
[352749919,1739290247914,-500.0,0.00011232,2]
[352749920,1739290247924,-595.17,0.00011232,2]
[352749921,1739290247935,-656.75,0.00011232,2]
[352749922,1739290247946,-500.0,0.00011232,2]
[352749923,1739290247956,-1064.59,0.00011232,2]
[352749925,1739290247968,-608.9,0.00011232,2]
[352749927,1739290247979,-151.0,0.00011232,2]
[352749928,1739290247991,-217.934458,0.00011232,2]
[352749929,1739290248002,-811.82,0.00011232,2]
[352749930,1739290248013,-500.0,0.00011232,2]
[352749931,1739290248028,-11171.20081451,0.00011232,2]
[352749944,1739290754536,5967.47,8.214e-05,2]
[352749997,1739291432431,-1177.4972926,9.693e-05,2]
[352749999,1739291432441,-300.0,9.695e-05,2]
[352750001,1739291432451,-1209.89611026,9.696e-05,2]
[352750011,1739291432543,-23690.10388974,9.696e-05,2]
[352750013,1739291432553,-1306.0,0.0001,2]
[352750016,1739291432568,-1303.0,0.0001,2]
[352750019,1739291432577,-1303.0,0.0001,2]
[352750023,1739291432587,-1303.0,0.0001,2]
[352750026,1739291432597,-2700.0,0.00010102,2]
[352750028,1739291432606,-407.7622546,0.00010549,2]
[352750030,1739291432615,-420.0,0.00010664,2]
[352750032,1739291432625,-400.0,0.00010685,2]
[352750034,1739291432635,-215.860309,0.000107,2]
[352750036,1739291432644,-154.6189857,0.000107,2]
[352750038,1739291432654,-215.860309,0.000107,2]
[352750040,1739291432663,-215.860309,0.000107,2]
[352750042,1739291432672,-154.6189857,0.000107,2]
[352750044,1739291432682,-309.2086892,0.000107,2]
[352750045,1739291432691,-431.6797991,0.000107,2]
[352750047,1739291432700,-154.6189857,0.000107,2]
[352750049,1739291432709,-215.860309,0.000107,2]
[352750051,1739291432718,-215.860309,0.000107,2]
[352750053,1739291432730,-154.6189857,0.000107,2]
[352750055,1739291432739,-215.860309,0.000107,2]
[352750057,1739291432748,-154.6189857,0.000107,2]
[352750059,1739291432757,-215.860309,0.000107,2]
[352750061,1739291432766,-154.6189857,0.000107,2]
[352750063,1739291432775,-154.6189857,0.000107,2]
[352750065,1739291432784,-154.6189857,0.000107,2]
[352750067,1739291432793,-215.860309,0.000107,2]
[352750069,1739291432802,-215.860309,0.000107,2]
[352750071,1739291432812,-209.3095513,0.000107,2]
[352750073,1739291432822,-354.876058,0.000107,2]
[352750075,1739291432831,-354.876058,0.000107,2]
[352750077,1739291432841,-354.876058,0.000107,2]
[352750079,1739291432850,-3535.08957027,0.00010918,2]
[352750081,1739291432861,-2413.29250822,0.00010918,2]
[352750083,1739291432871,-500.0,0.00010957,2]
[352750086,1739291432881,-500.0,0.00010957,2]
[352750088,1739291432891,-500.0,0.00010957,2]
[352750089,1739291432900,-500.0,0.00010957,2]
[352750091,1739291432909,-500.0,0.00010957,2]
[352750093,1739291432919,-500.0,0.00010957,2]
[352750095,1739291432929,-500.0,0.00010957,2]
[352750097,1739291432938,-500.0,0.00010957,2]
[352750099,1739291432947,-500.0,0.00010957,2]
[352750102,1739291432957,-500.0,0.00010957,2]
[352750104,1739291432967,-500.0,0.00010957,2]
[352750106,1739291432978,-500.0,0.00010957,2]
[352750108,1739291432989,-500.0,0.00010957,2]
[352750110,1739291432998,-500.0,0.00010957,2]
[352750112,1739291433007,-500.0,0.00010957,2]
[352750114,1739291433018,-500.0,0.00010957,2]
[352750116,1739291433028,-500.0,0.00010957,2]
[352750118,1739291433039,-500.0,0.00010957,2]
[352750120,1739291433050,-500.0,0.00010957,2]
[352750122,1739291433061,-500.0,0.00010957,2]
[352750124,1739291433071,-500.0,0.00010957,2]
[352750126,1739291433082,-356.91842365,0.00010957,2]
[352750128,1739291433092,-500.0,0.00010957,2]
[352750130,1739291433102,-393.87981544,0.00010957,2]
[352750132,1739291433112,-500.0,0.00010957,2]
[352750134,1739291433123,-500.0,0.00010958,2]
[352750136,1739291433134,-500.0,0.00010958,2]
[352750138,1739291433144,-500.0,0.00010958,2]
[352750140,1739291433155,-500.0,0.00010958,2]
[352750141,1739291433165,-500.0,0.00010958,2]
[352750143,1739291433174,-466.55137518,0.00010958,2]
[352750145,1739291433184,-158.23737832,0.00010958,2]
[352750147,1739291433193,-500.0,0.00010958,2]
[352750149,1739291433203,-500.0,0.00010958,2]
[352750151,1739291433214,-500.0,0.00010958,2]
[352750154,1739291433225,-500.0,0.00010958,2]
[352750156,1739291433237,-500.0,0.00010958,2]
[352750158,1739291433246,-544.13865101,0.00010958,2]
[352750159,1739291433256,-500.0,0.00010958,2]
[352750161,1739291433266,-649.75301621,0.00010958,2]
[352750163,1739291433276,-715.3,0.00010958,2]
[352750165,1739291433285,-659.6,0.00010958,2]
[352750167,1739291433295,-610.04,0.00010958,2]
[352750169,1739291433305,-500.0,0.00010958,2]
[352750171,1739291433315,-173.95305646,0.00010958,2]
[352750174,1739291433325,-500.0,0.00010958,2]
[352750176,1739291433335,-500.0,0.00010958,2]
[352750178,1739291433345,-500.0,0.00010958,2]
[352750180,1739291433355,-500.0,0.00010958,2]
[352750182,1739291433365,-500.0,0.00010958,2]
[352750184,1739291433376,-686.72,0.00010958,2]
[352750186,1739291433386,-500.0,0.00010958,2]
[352750188,1739291433396,-500.0,0.00010958,2]
[352750190,1739291433406,-500.0,0.00010958,2]
[352750192,1739291433415,-47.68717875,0.00010958,2]
[352750668,1739291438194,-541.18282125,0.00010958,2]
[352750670,1739291438204,-500.0,0.00010958,2]
[352750672,1739291438213,-500.0,0.00010958,2]
[352750674,1739291438223,-500.0,0.00010958,2]
[352750676,1739291438234,-500.0,0.00010958,2]
[352750678,1739291438243,-500.0,0.00010958,2]
[352750680,1739291438252,-500.0,0.00010958,2]
[352750682,1739291438261,-500.0,0.00010958,2]
[352750684,1739291438271,-500.0,0.00010958,2]
[352750686,1739291438280,-500.0,0.00010958,2]
[352750688,1739291438289,-1508.53,0.00010958,2]
[352750690,1739291438298,-500.0,0.00010958,2]
[352750692,1739291438308,-938.8,0.00010958,2]
[352750694,1739291438318,-1559.64849776,0.00010958,2]
[352750697,1739291438334,-1132.46150224,0.00010958,2]
[352750699,1739291438343,-500.0,0.00010958,2]
[352750701,1739291438353,-500.0,0.00010958,2]
[352750703,1739291438362,-500.0,0.00010958,2]
[352750705,1739291438373,-176.27947647,0.00010958,2]
[352750707,1739291438384,-323.72052353,0.00010958,2]
[352750709,1739291438394,-5805.92,0.00010958,2]
[352750711,1739291438403,-500.0,0.00010958,2]
[352750713,1739291438413,-500.0,0.00010958,2]
[352750715,1739291438423,-1351.14,0.00010958,2]
[352750717,1739291438435,-500.0,0.00010958,2]
[352750719,1739291438445,-500.0,0.00010958,2]
[352750721,1739291438454,-574.66,0.00010958,2]
[352750723,1739291438463,-1246.11,0.00010958,2]
[352750725,1739291438474,-500.0,0.00010958,2]
[352750727,1739291438485,-500.0,0.00010958,2]
[352750729,1739291438494,-2503.3,0.00010958,2]
[352750731,1739291438504,-532.79,0.00010958,2]
[352750733,1739291438515,-520.77,0.00010958,2]
[352750735,1739291438525,-931.51,0.00010958,2]
[352750738,1739291438535,-500.0,0.00010958,2]
[352750740,1739291438544,-710.34,0.00010958,2]
[352750742,1739291438554,-500.0,0.00010958,2]
[352750744,1739291438563,-19307.05,0.00010958,2]
[352750746,1739291438573,-524.85985061,0.00010958,2]
[352750748,1739291438582,-500.0,0.00010958,2]
[352750750,1739291438592,-500.0,0.00010958,2]
[352750752,1739291438601,-1062.01,0.00010958,2]
[352750754,1739291438610,-755.38,0.00010958,2]
[352750756,1739291438620,-532.16,0.00010958,2]
[352750758,1739291438630,-1056.94,0.00010958,2]
[352750760,1739291438639,-658.21,0.00010958,2]
[352750761,1739291438648,-500.0,0.00010958,2]
[352750763,1739291438657,-500.0,0.00010958,2]
[352750765,1739291438666,-521.29,0.00010958,2]
[352750767,1739291438675,-500.0,0.00010958,2]
[352750769,1739291438685,-569.39404959,0.00010958,2]
[352750771,1739291438694,-9338.62,0.00010958,2]
[352750773,1739291438704,-500.0,0.00010958,2]
[352750775,1739291438713,-500.0,0.00010958,2]
[352750776,1739291438723,-201.48366609,0.00010958,2]
[352750777,1739291438735,-500.0,0.00010958,2]
[352750778,1739291438745,-500.0,0.00010958,2]
[352750779,1739291438754,-500.0,0.00010958,2]
[352750780,1739291438763,-1106.68,0.00010958,2]
[352750781,1739291438773,-500.0,0.00010958,2]
[352750782,1739291438782,-500.0,0.00010958,2]
[352750783,1739291438791,-500.0,0.00010958,2]
[352750788,1739291438946,-1384.75,0.00010958,2]
[352750790,1739291438958,-3337.36,0.00010958,2]
[352750793,1739291438968,-832.3,0.00010958,2]
[352750795,1739291438977,-500.0,0.00010958,2]
[352750797,1739291438987,-1849.26,0.00010958,2]
[352750799,1739291438996,-789.51,0.00010958,2]
[352750801,1739291439006,-500.0,0.00010958,2]
[352750803,1739291439015,-500.0,0.00010958,2]
[352750805,1739291439024,-905.58,0.00010958,2]
[352750807,1739291439034,-500.0,0.00010958,2]
[352750809,1739291439043,-904.74,0.00010958,2]
[352750811,1739291439052,-1670.37,0.00010958,2]
[352750813,1739291439061,-500.0,0.00010958,2]
[352750815,1739291439071,-535.45,0.00010958,2]
[352750817,1739291439080,-126.01693314,0.00010958,2]
[352750819,1739291439093,-433.36306686,0.00010958,2]
[352750821,1739291439102,-500.0,0.00010958,2]
[352750823,1739291439111,-500.0,0.00010958,2]
[352750825,1739291439120,-1093.37,0.00010958,2]
[352750827,1739291439129,-500.0,0.00010958,2]
[352750829,1739291439138,-1381.26,0.00010958,2]
[352750831,1739291439147,-500.0,0.00010958,2]
[352750833,1739291439157,-500.0,0.00010958,2]
[352750835,1739291439167,-1970.0,0.00010964,2]
[352750837,1739291439176,-530.0,0.00010964,2]
[352750839,1739291439185,-396.0,0.00010964,2]
[352750841,1739291439194,-500.0,0.00010999,2]
[352750842,1739291439204,-259.04866488,0.00010999,2]
[352750844,1739291439214,-39379.62809386,0.00011,5]
[352750847,1739291439225,-3455.07011468,0.00011,5]
[352751279,1739291443279,-500.0,0.00010958,2]
[352751281,1739291443289,-500.0,0.00010958,2]
[352751283,1739291443299,-500.0,0.00010958,2]
[352751285,1739291443308,-15626.38623484,0.00011,5]
[352751288,1739291443332,-564.24,0.00011,5]
[352751295,1739291443388,-483.0,0.00011,5]
[352751298,1739291443400,-998.25,0.00011,5]
[352751300,1739291443413,-797.735,0.00011,5]
[352751608,1739291446387,-730.70117992,0.00011,5]
[352751611,1739291446399,-4996.0,0.00011,5]
[352751613,1739291446410,-3872.0,0.00011,5]
[352751617,1739291446443,-998.30111049,0.00011,5]
[352751925,1739292345100,-3094.20665699,9.593e-05,2]
[352751926,1739292345120,-491.23257316,9.593e-05,2]
[352751927,1739292345141,-702.246172,9.88e-05,2]
[352751928,1739292345162,-300.0,0.00010101,2]
[352751929,1739292345183,-2600.0,0.00010102,2]
[352751930,1739292345204,-400.0,0.00010685,2]
[352751931,1739292345224,-669.82,0.000109,2]
[352751932,1739292345245,-609.0,0.000109,3]
[352751933,1739292345266,-1608.86167214,0.000109,2]
[352751934,1739292345286,-3181.58061318,0.000109,2]
[352751935,1739292345307,-354.876058,0.000109,2]
[352751936,1739292345327,-580.104,0.00010957,2]
[352751937,1739292345348,-317.43538041,0.00010957,2]
[352751938,1739292345370,-500.0,0.00010957,2]
[352751939,1739292345391,-500.0,0.00010957,2]
[352751940,1739292345413,-548.00788581,0.00010957,2]
[352751941,1739292345434,-500.0,0.00010958,2]
[352751942,1739292345454,-500.0,0.00010958,2]
[352751943,1739292345475,-500.0,0.00010958,2]
[352751944,1739292345496,-460.85723888,0.00010958,2]
[352751945,1739292345517,-500.0,0.00010958,2]
[352751946,1739292345537,-155.44690647,0.00010958,2]
[352751947,1739292345557,-500.0,0.00010958,2]
[352751948,1739292345577,-500.0,0.00010958,2]
[352751949,1739292345597,-500.0,0.00010958,2]
[352751950,1739292345618,-500.0,0.00010958,2]
[352751951,1739292345638,-500.0,0.00010958,2]
[352751952,1739292345658,-500.0,0.00010958,2]
[352751953,1739292345679,-500.0,0.00010958,2]
[352751954,1739292345700,-500.0,0.00010958,2]
[352751955,1739292345720,-618.99279002,0.00010958,2]
[352751956,1739292345744,-509.99,0.00010958,2]
[352751957,1739292345768,-500.0,0.00010958,2]
[352751958,1739292345789,-500.0,0.00010958,2]
[352751959,1739292345810,-500.0,0.00010958,2]
[352751960,1739292345830,-500.0,0.00010958,2]
[352751961,1739292345852,-500.0,0.00010958,2]
[352751962,1739292345872,-500.0,0.00010958,2]
[352751963,1739292345893,-500.0,0.00010958,2]
[352751964,1739292345914,-500.0,0.00010958,2]
[352751965,1739292345936,-500.0,0.00010958,2]
[352751966,1739292345957,-500.0,0.00010958,2]
[352751967,1739292345980,-500.0,0.00010958,2]
[352751968,1739292346003,-580.35686455,0.00010958,2]
[352751969,1739292346024,-867.05,0.00010958,2]
[352751970,1739292346044,-500.0,0.00010958,2]
[352751971,1739292346064,-500.0,0.00010958,2]
[352751972,1739292346085,-797.62,0.00010958,2]
[352751973,1739292346105,-685.49,0.00010958,2]
[352751974,1739292346127,-3198.3,0.00010958,2]
[352751975,1739292346148,-500.0,0.00010958,2]
[352751976,1739292346170,-536.07,0.00010958,2]
[352751977,1739292346190,-500.0,0.00010958,2]
[352751978,1739292346212,-500.0,0.00010958,2]
[352751979,1739292346232,-500.0,0.00010958,2]
[352751980,1739292346256,-632.12,0.00010958,2]
[352751981,1739292346277,-867.85,0.00010958,2]
[352751982,1739292346298,-500.0,0.00010958,2]
[352751983,1739292346318,-500.0,0.00010958,2]
[352751984,1739292346339,-500.0,0.00010958,2]
[352751985,1739292346359,-513.14,0.00010958,2]
[352751986,1739292346380,-500.0,0.00010958,2]
[352751987,1739292346400,-500.0,0.00010958,2]
[352751988,1739292346423,-1600.77,0.00010958,2]
[352751989,1739292346444,-584.62,0.00010958,2]
[352751990,1739292346466,-1047.81,0.00010958,2]
[352751991,1739292346487,-467.97121657,0.00010958,2]
[352751992,1739292346507,-1323.71,0.00010958,2]
[352751993,1739292346528,-500.0,0.00010958,2]
[352751994,1739292346549,-500.0,0.00010958,2]
[352751995,1739292346571,-500.0,0.00010958,2]
[352751996,1739292346594,-1445.68,0.00010958,2]
[352751997,1739292346616,-899.68,0.00010958,2]
[352751998,1739292346637,-2579.94,0.00010958,2]
[352751999,1739292346660,-5567.55,0.00010958,2]
[352752000,1739292346682,-500.0,0.00010958,2]
[352752001,1739292346703,-506.62720037,0.00010958,2]
[352752002,1739292346725,-2398.99,0.00010958,2]
[352752003,1739292346747,-500.0,0.00010958,2]
[352752004,1739292346774,-500.0,0.00010958,2]
[352752005,1739292346796,-500.0,0.00010958,2]
[352752006,1739292346819,-500.0,0.00010958,2]
[352752007,1739292346842,-550.71,0.00010958,2]
[352752008,1739292346864,-500.0,0.00010958,2]
[352752009,1739292346886,-500.0,0.00010958,2]
[352752010,1739292346908,-1294.84,0.00010958,2]
[352752011,1739292346930,-500.0,0.00010958,2]
[352752012,1739292346952,-500.0,0.00010958,2]
[352752013,1739292346975,-658.11,0.00010958,2]
[352752014,1739292346998,-510.59,0.00010958,2]
[352752015,1739292347022,-1707.3,0.00010958,2]
[352752016,1739292347045,-893.35,0.00010958,2]
[352752017,1739292347069,-18530.24,0.00010958,2]
[352752018,1739292347093,-500.0,0.00010958,2]
[352752019,1739292347117,-508.33789204,0.00010958,2]
[352752020,1739292347141,-680.74,0.00010958,2]
[352752021,1739292347163,-500.0,0.00010958,2]
[352752022,1739292347188,-1017.76,0.00010958,2]
[352752023,1739292347211,-8958.23,0.00010958,2]
[352752024,1739292347237,-723.91,0.00010958,2]
[352752025,1739292347262,-582.14515034,0.00010958,2]
[352752026,1739292347285,-654.6,0.00010958,2]
[352752027,1739292347308,-564.33,0.00010958,2]
[352752028,1739292347330,-500.0,0.00010958,2]
[352752029,1739292347351,-1012.9,0.00010958,2]
[352752030,1739292347374,-500.0,0.00010958,2]
[352752031,1739292347396,-500.0,0.00010958,2]
[352752032,1739292347418,-1218.67,0.00010958,2]
[352752033,1739292347440,-500.0,0.00010958,2]